Workbook

Sheet تصفية
D11: م | E11: التاريخ | F11: القيمة المدينة | G11: الحســــــــاب المــديـن | H11: القيمة الدائنـة | I11: الحســــــــاب الـدائــن | J11: الــبــيـــــــــــــــــــــان | K11: الـعـمـيــــــل | L11: رصيـد الخزينــة .. | M11: المدة | N11: قيمة القسط ---
C12: 1 | D12: 1 | E12: 2017-12-31 | F12: 3760 | G12: ارصدة دائنة | H12: 4378.5 | I12: ارصدة دائنة | K12: صفاء محمد
C13: 2 | D13: 2 | E13: 2017-12-31 | F13: 40 | G13: ارصدة دائنة | H13: 230 | I13: ارصدة دائنة | K13: صالح مسعد | P13: ارصدة دائنة
C14: 3 | D14: 3 | E14: 2017-12-31 | F14: 195 | G14: ارصدة دائنة | H14: 209 | I14: ارصدة دائنة | K14: سعاد محمد | P14: الخزينة
C15: 4 | D15: 4 | E15: 2017-12-31 | F15: 300 | G15: ارصدة دائنة | H15: 370 | I15: ارصدة دائنة | K15: تيسير | P15: حسابات وسيطة
C16: 5 | D16: 5 | E16: 2017-12-31 | F16: 0 | G16: ارصدة دائنة | H16: 78 | I16: ارصدة دائنة | K16: نسرين
C17: 6 | D17: 6 | E17: 2017-12-31 | F17: 0 | G17: ارصدة دائنة | H17: 28 | I17: ارصدة دائنة | K17: محمد
C18: 7 | D18: 82 | E18: 2018-01-22 | F18: 618.5 | G18: ارصدة دائنة | H18: 618.5 | I18: العملاء | K18: صفاء محمد
C19: 8 | D19: 94 | E19: 2018-01-29 | F19: 105 | G19: الخزينة | H19: 105 | I19: ارصدة دائنة | K19: ايناس
C20: 9 | D20: 144 | E20: 2018-02-07 | F20: 30 | G20: الخزينة | H20: 30 | I20: ارصدة دائنة | K20: تيسير
C21: 10 | D21: 168 | E21: 2018-02-12 | F21: 890 | G21: الخزينة | H21: 890 | I21: ارصدة دائنة | K21: محمد
C22: 11 | D22: 184 | E22: 2018-02-23 | F22: 20 | G22: الخزينة | H22: 20 | I22: ارصدة دائنة | K22: ايناس
C23: 12 | D23: 239 | E23: 2018-03-10 | F23: 30 | G23: الخزينة | H23: 30 | I23: ارصدة دائنة | K23: تيسير
C24: 13 | D24: 321 | E24: 2018-04-07 | F24: 30 | G24: الخزينة | H24: 30 | I24: ارصدة دائنة | K24: تيسير
C25: 14 | D25: 322 | E25: 2018-04-07 | F25: 160 | G25: ارصدة دائنة | H25: 160 | I25: العملاء | K25: تيسير
C26: 15 | D26: 356 | E26: 2018-04-12 | F26: 125 | G26: ارصدة دائنة | H26: 125 | I26: العملاء | K26: ايناس
C27: 16 | D27: 456 | E27: 2018-05-08 | F27: 700.5 | G27: الخزينة | H27: 700.5 | I27: ارصدة دائنة | K27: تيسير
C28: 17 | D28: 549 | E28: 2018-06-10 | F28: 30 | G28: الخزينة | H28: 30 | I28: ارصدة دائنة | K28: تيسير
C29: 18 | D29: 592 | E29: 2018-07-03 | F29: 1000 | G29: الخزينة | H29: 1000 | I29: ارصدة دائنة | K29: صفاء محمد
C30: 19 | D30: 593 | E30: 2018-07-03 | F30: 918 | G30: ارصدة دائنة | H30: 918 | I30: حسابات وسيطة | K30: محمد
C31: 20 | D31: 594 | E31: 2018-07-03 | F31: 918 | G31: حسابات وسيطة | H31: 918 | I31: ارصدة دائنة | K31: صفاء محمد
C32: 21 | D32: 626 | E32: 2018-07-07 | F32: 30 | G32: الخزينة | H32: 30 | I32: ارصدة دائنة | K32: تيسير
C33: 22 | D33: 672 | E33: 2018-08-02 | F33: 159 | G33: الخزينة | H33: 159 | I33: ارصدة دائنة | K33: هدى
C34: 23 | D34: 680 | E34: 2018-08-02 | F34: 37.5 | G34: الخزينة | H34: 37.5 | I34: ارصدة دائنة | K34: اسماء
C35: 24 | D35: 682 | E35: 2018-08-05 | F35: 37 | G35: ارصدة دائنة | H35: 37 | I35: العملاء | K35: اسماء
C36: 25 | D36: 689 | E36: 2018-08-05 | F36: 159.75 | G36: ارصدة دائنة | H36: 159.75 | I36: العملاء | K36: هدى
C37: 26 | D37: 728 | E37: 2018-08-08 | F37: 30 | G37: الخزينة | H37: 30 | I37: ارصدة دائنة | K37: تيسير
C38: 27 | D38: 750 | E38: 2018-08-09 | F38: 500 | G38: الخزينة | H38: 500 | I38: ارصدة دائنة | K38: صفاء محمد
C39: 28 | D39: 809 | E39: 2018-09-08 | F39: 30 | G39: الخزينة | H39: 30 | I39: ارصدة دائنة | K39: تيسير
C40: 29 | D40: 810 | E40: 2018-09-08 | F40: 102 | G40: ارصدة دائنة | H40: 102 | I40: العملاء | K40: تيسير
C41: 30 | D41: 811 | E41: 2018-09-08 | F41: 48 | G41: ارصدة دائنة | H41: 48 | I41: الخزينة | K41: تيسير
C42: 31 | D42: 812 | E42: 2018-09-08 | F42: 78 | G42: ارصدة دائنة | H42: 78 | I42: ايرادات ( غرامات ) | K42: نسرين
C43: 32 | D43: 813 | E43: 2018-09-08 | F43: 14 | G43: ارصدة دائنة | H43: 14 | I43: ايرادات ( غرامات ) | K43: سعاد محمد
C44: 33 | D44: 909 | E44: 2018-10-20 | F44: 75 | G44: الخزينة | H44: 75 | I44: ارصدة دائنة | K44: صباح
C45: 34 | D45: 1126 | E45: 2018-12-09 | F45: 100.75 | G45: الخزينة | H45: 100.75 | I45: ارصدة دائنة | K45: عبير
C46: 35 | D46: 1146 | E46: 2018-12-11 | F46: 500.37 | G46: الخزينة | H46: 500.37 | I46: ارصدة دائنة | K46: صفاء محمد
C47: 36 | D47: 1148 | E47: 2018-12-11 | F47: 1385 | G47: ارصدة دائنة | H47: 1385 | I47: العملاء | K47: صفاء محمد
C48: 37 | D48: 1149 | E48: 2018-12-11 | F48: 1333 | G48: ارصدة دائنة | H48: 1333 | I48: العملاء | K48: صفاء محمد
C49: 38 | D49: 1192 | E49: 2019-01-08 | F49: 75 | G49: ارصدة دائنة | H49: 75 | I49: العملاء | K49: صباح
C50: 39 | D50: 1224 | E50: 2019-01-15 | F50: 40 | G50: الخزينة | H50: 40 | I50: ارصدة دائنة | K50: صباح
C51: 40 | D51: 1239 | E51: 2019-01-26 | F51: 77 | G51: الخزينة | H51: 77 | I51: ارصدة دائنة | K51: ايناس
C52: 41 | D52: 1330 | E52: 2019-03-05 | F52: 230 | G52: الخزينة | H52: 230 | I52: ارصدة دائنة | K52: حنان
C53: 42 | D53: 1379 | E53: 2019-03-13 | F53: 285.75 | G53: الخزينة | H53: 285.75 | I53: ارصدة دائنة | K53: محاسن
C54: 43 | D54: 1391 | E54: 2019-04-02 | F54: 230 | G54: ارصدة دائنة | H54: 230 | I54: العملاء | K54: حنان
C55: 44 | D55: 1472 | E55: 2019-05-06 | F55: 500 | G55: الخزينة | H55: 500 | I55: ارصدة دائنة | K55: صفاء محمد
C56: 45 | D56: 1516 | E56: 2019-05-20 | F56: 77 | G56: ارصدة دائنة | H56: 77 | I56: العملاء | K56: ايناس
C57: 46
C58: 47
C59: 48
C60: 49
C61: 50
C62: 51
C63: 52
C64: 53
C65: 54
C66: 55
C67: 56
C68: 57
C69: 58
C70: 59
C71: 60
C72: 61
C73: 62
C74: 63
C75: 64
C76: 65
C77: 66
C78: 67
C79: 68
C80: 69
C81: 70
C82: 71
C83: 72
C84: 73
C85: 74
C86: 75
C87: 76
C88: 77
C89: 78
C90: 79
C91: 80
C92: 81
C93: 82
C94: 83
C95: 84
C96: 85
C97: 86
C98: 87
C99: 88
C100: 89
C101: 90
C102: 91
C103: 92
C104: 93
C105: 94
C106: 95
C107: 96
C108: 97
C109: 98
C110: 99
C111: 100

Sheet أرصدة
E4: إجمالى مــدين | F4: إجمالى دائـــن | G4: الرصيد
E6: =SUBTOTAL(109,E10:E109) -> 8896.75 | F6: =SUBTOTAL(109,F10:F109) -> 4108.87 | G6: =SUBTOTAL(109,G10:G109) -> -4787.88
D7: ارصدة دائنة | F7: الخزينة
B9: م | D9: العميــــــــل | E9: مدين (عليه) | F9: دائن (لــه) | G9: الرصيد
B10: 1 | D10: صفاء محمد | E10: =IF($D10="","",SUMPRODUCT((تصفية!$K$12:$K$111=$D10)*(تصفية!$G$12:$G$111=$D$7)*(تصفية!$H$12:$H$111))) -> 7715 | F10: =IF($D10="","",SUMPRODUCT((تصفية!$K$12:$K$111=$D10)*(تصفية!$G$12:$G$111=$F$7)*(تصفية!$H$12:$H$111))) -> 2500.37 | G10: =IF($D10="","",F10-E10) -> -5214.63
B11: 2 | D11: صالح مسعد | E11: =IF($D11="","",SUMPRODUCT((تصفية!$K$12:$K$111=$D11)*(تصفية!$G$12:$G$111=$D$7)*(تصفية!$H$12:$H$111))) -> 230 | F11: =IF($D11="","",SUMPRODUCT((تصفية!$K$12:$K$111=$D11)*(تصفية!$G$12:$G$111=$F$7)*(تصفية!$H$12:$H$111))) -> 0 | G11: -230
B12: 3 | D12: تيسير | E12: =IF($D12="","",SUMPRODUCT((تصفية!$K$12:$K$111=$D12)*(تصفية!$G$12:$G$111=$D$7)*(تصفية!$H$12:$H$111))) -> 680 | F12: =IF($D12="","",SUMPRODUCT((تصفية!$K$12:$K$111=$D12)*(تصفية!$G$12:$G$111=$F$7)*(تصفية!$H$12:$H$111))) -> 910.5 | G12: 230.5
B13: 4 | D13: هدى | E13: =IF($D13="","",SUMPRODUCT((تصفية!$K$12:$K$111=$D13)*(تصفية!$G$12:$G$111=$D$7)*(تصفية!$H$12:$H$111))) -> 159.75 | F13: =IF($D13="","",SUMPRODUCT((تصفية!$K$12:$K$111=$D13)*(تصفية!$G$12:$G$111=$F$7)*(تصفية!$H$12:$H$111))) -> 159 | G13: -0.75
B14: 5 | D14: اسماء | E14: =IF($D14="","",SUMPRODUCT((تصفية!$K$12:$K$111=$D14)*(تصفية!$G$12:$G$111=$D$7)*(تصفية!$H$12:$H$111))) -> 37 | F14: =IF($D14="","",SUMPRODUCT((تصفية!$K$12:$K$111=$D14)*(تصفية!$G$12:$G$111=$F$7)*(تصفية!$H$12:$H$111))) -> 37.5 | G14: 0.5
B15: 6 | D15: صباح | E15: =IF($D15="","",SUMPRODUCT((تصفية!$K$12:$K$111=$D15)*(تصفية!$G$12:$G$111=$D$7)*(تصفية!$H$12:$H$111))) -> 75 | F15: =IF($D15="","",SUMPRODUCT((تصفية!$K$12:$K$111=$D15)*(تصفية!$G$12:$G$111=$F$7)*(تصفية!$H$12:$H$111))) -> 115 | G15: 40
B16: 7 | D16: عبير | E16: =IF($D16="","",SUMPRODUCT((تصفية!$K$12:$K$111=$D16)*(تصفية!$G$12:$G$111=$D$7)*(تصفية!$H$12:$H$111))) -> 0 | F16: =IF($D16="","",SUMPRODUCT((تصفية!$K$12:$K$111=$D16)*(تصفية!$G$12:$G$111=$F$7)*(تصفية!$H$12:$H$111))) -> 100.75 | G16: 100.75
B17: 8 | D17: محاسن | E17: =IF($D17="","",SUMPRODUCT((تصفية!$K$12:$K$111=$D17)*(تصفية!$G$12:$G$111=$D$7)*(تصفية!$H$12:$H$111))) -> 0 | F17: =IF($D17="","",SUMPRODUCT((تصفية!$K$12:$K$111=$D17)*(تصفية!$G$12:$G$111=$F$7)*(تصفية!$H$12:$H$111))) -> 285.75 | G17: 285.75
B18: 9 | E18: =IF($D18="","",SUMPRODUCT((تصفية!$K$12:$K$111=$D18)*(تصفية!$G$12:$G$111=$D$7)*(تصفية!$H$12:$H$111))) ->  | F18: =IF($D18="","",SUMPRODUCT((تصفية!$K$12:$K$111=$D18)*(تصفية!$G$12:$G$111=$F$7)*(تصفية!$H$12:$H$111))) -> 
B19: 10 | E19: =IF($D19="","",SUMPRODUCT((تصفية!$K$12:$K$111=$D19)*(تصفية!$G$12:$G$111=$D$7)*(تصفية!$H$12:$H$111))) ->  | F19: =IF($D19="","",SUMPRODUCT((تصفية!$K$12:$K$111=$D19)*(تصفية!$G$12:$G$111=$F$7)*(تصفية!$H$12:$H$111))) -> 
B20: 11 | E20: =IF($D20="","",SUMPRODUCT((تصفية!$K$12:$K$111=$D20)*(تصفية!$G$12:$G$111=$D$7)*(تصفية!$H$12:$H$111))) ->  | F20: =IF($D20="","",SUMPRODUCT((تصفية!$K$12:$K$111=$D20)*(تصفية!$G$12:$G$111=$F$7)*(تصفية!$H$12:$H$111))) -> 
B21: 12 | E21: =IF($D21="","",SUMPRODUCT((تصفية!$K$12:$K$111=$D21)*(تصفية!$G$12:$G$111=$D$7)*(تصفية!$H$12:$H$111))) ->  | F21: =IF($D21="","",SUMPRODUCT((تصفية!$K$12:$K$111=$D21)*(تصفية!$G$12:$G$111=$F$7)*(تصفية!$H$12:$H$111))) -> 
B22: 13 | E22: =IF($D22="","",SUMPRODUCT((تصفية!$K$12:$K$111=$D22)*(تصفية!$G$12:$G$111=$D$7)*(تصفية!$H$12:$H$111))) ->  | F22: =IF($D22="","",SUMPRODUCT((تصفية!$K$12:$K$111=$D22)*(تصفية!$G$12:$G$111=$F$7)*(تصفية!$H$12:$H$111))) -> 
B23: 14 | E23: =IF($D23="","",SUMPRODUCT((تصفية!$K$12:$K$111=$D23)*(تصفية!$G$12:$G$111=$D$7)*(تصفية!$H$12:$H$111))) ->  | F23: =IF($D23="","",SUMPRODUCT((تصفية!$K$12:$K$111=$D23)*(تصفية!$G$12:$G$111=$F$7)*(تصفية!$H$12:$H$111))) -> 
B24: 15 | E24: =IF($D24="","",SUMPRODUCT((تصفية!$K$12:$K$111=$D24)*(تصفية!$G$12:$G$111=$D$7)*(تصفية!$H$12:$H$111))) ->  | F24: =IF($D24="","",SUMPRODUCT((تصفية!$K$12:$K$111=$D24)*(تصفية!$G$12:$G$111=$F$7)*(تصفية!$H$12:$H$111))) -> 
B25: 16 | E25: =IF($D25="","",SUMPRODUCT((تصفية!$K$12:$K$111=$D25)*(تصفية!$G$12:$G$111=$D$7)*(تصفية!$H$12:$H$111))) ->  | F25: =IF($D25="","",SUMPRODUCT((تصفية!$K$12:$K$111=$D25)*(تصفية!$G$12:$G$111=$F$7)*(تصفية!$H$12:$H$111))) -> 
B26: 17 | E26: =IF($D26="","",SUMPRODUCT((تصفية!$K$12:$K$111=$D26)*(تصفية!$G$12:$G$111=$D$7)*(تصفية!$H$12:$H$111))) ->  | F26: =IF($D26="","",SUMPRODUCT((تصفية!$K$12:$K$111=$D26)*(تصفية!$G$12:$G$111=$F$7)*(تصفية!$H$12:$H$111))) -> 
B27: 18 | E27: =IF($D27="","",SUMPRODUCT((تصفية!$K$12:$K$111=$D27)*(تصفية!$G$12:$G$111=$D$7)*(تصفية!$H$12:$H$111))) ->  | F27: =IF($D27="","",SUMPRODUCT((تصفية!$K$12:$K$111=$D27)*(تصفية!$G$12:$G$111=$F$7)*(تصفية!$H$12:$H$111))) -> 
B28: 19 | E28: =IF($D28="","",SUMPRODUCT((تصفية!$K$12:$K$111=$D28)*(تصفية!$G$12:$G$111=$D$7)*(تصفية!$H$12:$H$111))) ->  | F28: =IF($D28="","",SUMPRODUCT((تصفية!$K$12:$K$111=$D28)*(تصفية!$G$12:$G$111=$F$7)*(تصفية!$H$12:$H$111))) -> 
B29: 20 | E29: =IF($D29="","",SUMPRODUCT((تصفية!$K$12:$K$111=$D29)*(تصفية!$G$12:$G$111=$D$7)*(تصفية!$H$12:$H$111))) ->  | F29: =IF($D29="","",SUMPRODUCT((تصفية!$K$12:$K$111=$D29)*(تصفية!$G$12:$G$111=$F$7)*(تصفية!$H$12:$H$111))) -> 
B30: 21 | E30: =IF($D30="","",SUMPRODUCT((تصفية!$K$12:$K$111=$D30)*(تصفية!$G$12:$G$111=$D$7)*(تصفية!$H$12:$H$111))) ->  | F30: =IF($D30="","",SUMPRODUCT((تصفية!$K$12:$K$111=$D30)*(تصفية!$G$12:$G$111=$F$7)*(تصفية!$H$12:$H$111))) -> 
B31: 22 | E31: =IF($D31="","",SUMPRODUCT((تصفية!$K$12:$K$111=$D31)*(تصفية!$G$12:$G$111=$D$7)*(تصفية!$H$12:$H$111))) ->  | F31: =IF($D31="","",SUMPRODUCT((تصفية!$K$12:$K$111=$D31)*(تصفية!$G$12:$G$111=$F$7)*(تصفية!$H$12:$H$111))) -> 
B32: 23 | E32: =IF($D32="","",SUMPRODUCT((تصفية!$K$12:$K$111=$D32)*(تصفية!$G$12:$G$111=$D$7)*(تصفية!$H$12:$H$111))) ->  | F32: =IF($D32="","",SUMPRODUCT((تصفية!$K$12:$K$111=$D32)*(تصفية!$G$12:$G$111=$F$7)*(تصفية!$H$12:$H$111))) -> 
B33: 24 | E33: =IF($D33="","",SUMPRODUCT((تصفية!$K$12:$K$111=$D33)*(تصفية!$G$12:$G$111=$D$7)*(تصفية!$H$12:$H$111))) ->  | F33: =IF($D33="","",SUMPRODUCT((تصفية!$K$12:$K$111=$D33)*(تصفية!$G$12:$G$111=$F$7)*(تصفية!$H$12:$H$111))) -> 
B34: 25 | E34: =IF($D34="","",SUMPRODUCT((تصفية!$K$12:$K$111=$D34)*(تصفية!$G$12:$G$111=$D$7)*(تصفية!$H$12:$H$111))) ->  | F34: =IF($D34="","",SUMPRODUCT((تصفية!$K$12:$K$111=$D34)*(تصفية!$G$12:$G$111=$F$7)*(تصفية!$H$12:$H$111))) -> 
B35: 26 | E35: =IF($D35="","",SUMPRODUCT((تصفية!$K$12:$K$111=$D35)*(تصفية!$G$12:$G$111=$D$7)*(تصفية!$H$12:$H$111))) ->  | F35: =IF($D35="","",SUMPRODUCT((تصفية!$K$12:$K$111=$D35)*(تصفية!$G$12:$G$111=$F$7)*(تصفية!$H$12:$H$111))) -> 
B36: 27 | E36: =IF($D36="","",SUMPRODUCT((تصفية!$K$12:$K$111=$D36)*(تصفية!$G$12:$G$111=$D$7)*(تصفية!$H$12:$H$111))) ->  | F36: =IF($D36="","",SUMPRODUCT((تصفية!$K$12:$K$111=$D36)*(تصفية!$G$12:$G$111=$F$7)*(تصفية!$H$12:$H$111))) -> 
B37: 28 | E37: =IF($D37="","",SUMPRODUCT((تصفية!$K$12:$K$111=$D37)*(تصفية!$G$12:$G$111=$D$7)*(تصفية!$H$12:$H$111))) ->  | F37: =IF($D37="","",SUMPRODUCT((تصفية!$K$12:$K$111=$D37)*(تصفية!$G$12:$G$111=$F$7)*(تصفية!$H$12:$H$111))) -> 
B38: 29 | E38: =IF($D38="","",SUMPRODUCT((تصفية!$K$12:$K$111=$D38)*(تصفية!$G$12:$G$111=$D$7)*(تصفية!$H$12:$H$111))) ->  | F38: =IF($D38="","",SUMPRODUCT((تصفية!$K$12:$K$111=$D38)*(تصفية!$G$12:$G$111=$F$7)*(تصفية!$H$12:$H$111))) -> 
B39: 30 | E39: =IF($D39="","",SUMPRODUCT((تصفية!$K$12:$K$111=$D39)*(تصفية!$G$12:$G$111=$D$7)*(تصفية!$H$12:$H$111))) ->  | F39: =IF($D39="","",SUMPRODUCT((تصفية!$K$12:$K$111=$D39)*(تصفية!$G$12:$G$111=$F$7)*(تصفية!$H$12:$H$111))) -> 
B40: 31 | E40: =IF($D40="","",SUMPRODUCT((تصفية!$K$12:$K$111=$D40)*(تصفية!$G$12:$G$111=$D$7)*(تصفية!$H$12:$H$111))) ->  | F40: =IF($D40="","",SUMPRODUCT((تصفية!$K$12:$K$111=$D40)*(تصفية!$G$12:$G$111=$F$7)*(تصفية!$H$12:$H$111))) -> 
B41: 32 | E41: =IF($D41="","",SUMPRODUCT((تصفية!$K$12:$K$111=$D41)*(تصفية!$G$12:$G$111=$D$7)*(تصفية!$H$12:$H$111))) ->  | F41: =IF($D41="","",SUMPRODUCT((تصفية!$K$12:$K$111=$D41)*(تصفية!$G$12:$G$111=$F$7)*(تصفية!$H$12:$H$111))) -> 
B42: 33 | E42: =IF($D42="","",SUMPRODUCT((تصفية!$K$12:$K$111=$D42)*(تصفية!$G$12:$G$111=$D$7)*(تصفية!$H$12:$H$111))) ->  | F42: =IF($D42="","",SUMPRODUCT((تصفية!$K$12:$K$111=$D42)*(تصفية!$G$12:$G$111=$F$7)*(تصفية!$H$12:$H$111))) -> 
B43: 34 | E43: =IF($D43="","",SUMPRODUCT((تصفية!$K$12:$K$111=$D43)*(تصفية!$G$12:$G$111=$D$7)*(تصفية!$H$12:$H$111))) ->  | F43: =IF($D43="","",SUMPRODUCT((تصفية!$K$12:$K$111=$D43)*(تصفية!$G$12:$G$111=$F$7)*(تصفية!$H$12:$H$111))) -> 
B44: 35 | E44: =IF($D44="","",SUMPRODUCT((تصفية!$K$12:$K$111=$D44)*(تصفية!$G$12:$G$111=$D$7)*(تصفية!$H$12:$H$111))) ->  | F44: =IF($D44="","",SUMPRODUCT((تصفية!$K$12:$K$111=$D44)*(تصفية!$G$12:$G$111=$F$7)*(تصفية!$H$12:$H$111))) -> 
B45: 36 | E45: =IF($D45="","",SUMPRODUCT((تصفية!$K$12:$K$111=$D45)*(تصفية!$G$12:$G$111=$D$7)*(تصفية!$H$12:$H$111))) ->  | F45: =IF($D45="","",SUMPRODUCT((تصفية!$K$12:$K$111=$D45)*(تصفية!$G$12:$G$111=$F$7)*(تصفية!$H$12:$H$111))) -> 
B46: 37 | E46: =IF($D46="","",SUMPRODUCT((تصفية!$K$12:$K$111=$D46)*(تصفية!$G$12:$G$111=$D$7)*(تصفية!$H$12:$H$111))) ->  | F46: =IF($D46="","",SUMPRODUCT((تصفية!$K$12:$K$111=$D46)*(تصفية!$G$12:$G$111=$F$7)*(تصفية!$H$12:$H$111))) -> 
B47: 38 | E47: =IF($D47="","",SUMPRODUCT((تصفية!$K$12:$K$111=$D47)*(تصفية!$G$12:$G$111=$D$7)*(تصفية!$H$12:$H$111))) ->  | F47: =IF($D47="","",SUMPRODUCT((تصفية!$K$12:$K$111=$D47)*(تصفية!$G$12:$G$111=$F$7)*(تصفية!$H$12:$H$111))) -> 
B48: 39 | E48: =IF($D48="","",SUMPRODUCT((تصفية!$K$12:$K$111=$D48)*(تصفية!$G$12:$G$111=$D$7)*(تصفية!$H$12:$H$111))) ->  | F48: =IF($D48="","",SUMPRODUCT((تصفية!$K$12:$K$111=$D48)*(تصفية!$G$12:$G$111=$F$7)*(تصفية!$H$12:$H$111))) -> 
B49: 40 | E49: =IF($D49="","",SUMPRODUCT((تصفية!$K$12:$K$111=$D49)*(تصفية!$G$12:$G$111=$D$7)*(تصفية!$H$12:$H$111))) ->  | F49: =IF($D49="","",SUMPRODUCT((تصفية!$K$12:$K$111=$D49)*(تصفية!$G$12:$G$111=$F$7)*(تصفية!$H$12:$H$111))) -> 
B50: 41 | E50: =IF($D50="","",SUMPRODUCT((تصفية!$K$12:$K$111=$D50)*(تصفية!$G$12:$G$111=$D$7)*(تصفية!$H$12:$H$111))) ->  | F50: =IF($D50="","",SUMPRODUCT((تصفية!$K$12:$K$111=$D50)*(تصفية!$G$12:$G$111=$F$7)*(تصفية!$H$12:$H$111))) -> 
B51: 42 | E51: =IF($D51="","",SUMPRODUCT((تصفية!$K$12:$K$111=$D51)*(تصفية!$G$12:$G$111=$D$7)*(تصفية!$H$12:$H$111))) ->  | F51: =IF($D51="","",SUMPRODUCT((تصفية!$K$12:$K$111=$D51)*(تصفية!$G$12:$G$111=$F$7)*(تصفية!$H$12:$H$111))) -> 
B52: 43 | E52: =IF($D52="","",SUMPRODUCT((تصفية!$K$12:$K$111=$D52)*(تصفية!$G$12:$G$111=$D$7)*(تصفية!$H$12:$H$111))) ->  | F52: =IF($D52="","",SUMPRODUCT((تصفية!$K$12:$K$111=$D52)*(تصفية!$G$12:$G$111=$F$7)*(تصفية!$H$12:$H$111))) -> 
B53: 44 | E53: =IF($D53="","",SUMPRODUCT((تصفية!$K$12:$K$111=$D53)*(تصفية!$G$12:$G$111=$D$7)*(تصفية!$H$12:$H$111))) ->  | F53: =IF($D53="","",SUMPRODUCT((تصفية!$K$12:$K$111=$D53)*(تصفية!$G$12:$G$111=$F$7)*(تصفية!$H$12:$H$111))) -> 
B54: 45 | E54: =IF($D54="","",SUMPRODUCT((تصفية!$K$12:$K$111=$D54)*(تصفية!$G$12:$G$111=$D$7)*(تصفية!$H$12:$H$111))) ->  | F54: =IF($D54="","",SUMPRODUCT((تصفية!$K$12:$K$111=$D54)*(تصفية!$G$12:$G$111=$F$7)*(تصفية!$H$12:$H$111))) -> 
B55: 46 | E55: =IF($D55="","",SUMPRODUCT((تصفية!$K$12:$K$111=$D55)*(تصفية!$G$12:$G$111=$D$7)*(تصفية!$H$12:$H$111))) ->  | F55: =IF($D55="","",SUMPRODUCT((تصفية!$K$12:$K$111=$D55)*(تصفية!$G$12:$G$111=$F$7)*(تصفية!$H$12:$H$111))) -> 
B56: 47 | E56: =IF($D56="","",SUMPRODUCT((تصفية!$K$12:$K$111=$D56)*(تصفية!$G$12:$G$111=$D$7)*(تصفية!$H$12:$H$111))) ->  | F56: =IF($D56="","",SUMPRODUCT((تصفية!$K$12:$K$111=$D56)*(تصفية!$G$12:$G$111=$F$7)*(تصفية!$H$12:$H$111))) -> 
B57: 48 | E57: =IF($D57="","",SUMPRODUCT((تصفية!$K$12:$K$111=$D57)*(تصفية!$G$12:$G$111=$D$7)*(تصفية!$H$12:$H$111))) ->  | F57: =IF($D57="","",SUMPRODUCT((تصفية!$K$12:$K$111=$D57)*(تصفية!$G$12:$G$111=$F$7)*(تصفية!$H$12:$H$111))) -> 
B58: 49 | E58: =IF($D58="","",SUMPRODUCT((تصفية!$K$12:$K$111=$D58)*(تصفية!$G$12:$G$111=$D$7)*(تصفية!$H$12:$H$111))) ->  | F58: =IF($D58="","",SUMPRODUCT((تصفية!$K$12:$K$111=$D58)*(تصفية!$G$12:$G$111=$F$7)*(تصفية!$H$12:$H$111))) -> 
B59: 50 | E59: =IF($D59="","",SUMPRODUCT((تصفية!$K$12:$K$111=$D59)*(تصفية!$G$12:$G$111=$D$7)*(تصفية!$H$12:$H$111))) ->  | F59: =IF($D59="","",SUMPRODUCT((تصفية!$K$12:$K$111=$D59)*(تصفية!$G$12:$G$111=$F$7)*(تصفية!$H$12:$H$111))) -> 
B60: 51 | E60: =IF($D60="","",SUMPRODUCT((تصفية!$K$12:$K$111=$D60)*(تصفية!$G$12:$G$111=$D$7)*(تصفية!$H$12:$H$111))) ->  | F60: =IF($D60="","",SUMPRODUCT((تصفية!$K$12:$K$111=$D60)*(تصفية!$G$12:$G$111=$F$7)*(تصفية!$H$12:$H$111))) -> 
B61: 52 | E61: =IF($D61="","",SUMPRODUCT((تصفية!$K$12:$K$111=$D61)*(تصفية!$G$12:$G$111=$D$7)*(تصفية!$H$12:$H$111))) ->  | F61: =IF($D61="","",SUMPRODUCT((تصفية!$K$12:$K$111=$D61)*(تصفية!$G$12:$G$111=$F$7)*(تصفية!$H$12:$H$111))) -> 
B62: 53 | E62: =IF($D62="","",SUMPRODUCT((تصفية!$K$12:$K$111=$D62)*(تصفية!$G$12:$G$111=$D$7)*(تصفية!$H$12:$H$111))) ->  | F62: =IF($D62="","",SUMPRODUCT((تصفية!$K$12:$K$111=$D62)*(تصفية!$G$12:$G$111=$F$7)*(تصفية!$H$12:$H$111))) -> 
B63: 54 | E63: =IF($D63="","",SUMPRODUCT((تصفية!$K$12:$K$111=$D63)*(تصفية!$G$12:$G$111=$D$7)*(تصفية!$H$12:$H$111))) ->  | F63: =IF($D63="","",SUMPRODUCT((تصفية!$K$12:$K$111=$D63)*(تصفية!$G$12:$G$111=$F$7)*(تصفية!$H$12:$H$111))) -> 
B64: 55 | E64: =IF($D64="","",SUMPRODUCT((تصفية!$K$12:$K$111=$D64)*(تصفية!$G$12:$G$111=$D$7)*(تصفية!$H$12:$H$111))) ->  | F64: =IF($D64="","",SUMPRODUCT((تصفية!$K$12:$K$111=$D64)*(تصفية!$G$12:$G$111=$F$7)*(تصفية!$H$12:$H$111))) -> 
B65: 56 | E65: =IF($D65="","",SUMPRODUCT((تصفية!$K$12:$K$111=$D65)*(تصفية!$G$12:$G$111=$D$7)*(تصفية!$H$12:$H$111))) ->  | F65: =IF($D65="","",SUMPRODUCT((تصفية!$K$12:$K$111=$D65)*(تصفية!$G$12:$G$111=$F$7)*(تصفية!$H$12:$H$111))) -> 
B66: 57 | E66: =IF($D66="","",SUMPRODUCT((تصفية!$K$12:$K$111=$D66)*(تصفية!$G$12:$G$111=$D$7)*(تصفية!$H$12:$H$111))) ->  | F66: =IF($D66="","",SUMPRODUCT((تصفية!$K$12:$K$111=$D66)*(تصفية!$G$12:$G$111=$F$7)*(تصفية!$H$12:$H$111))) -> 
B67: 58 | E67: =IF($D67="","",SUMPRODUCT((تصفية!$K$12:$K$111=$D67)*(تصفية!$G$12:$G$111=$D$7)*(تصفية!$H$12:$H$111))) ->  | F67: =IF($D67="","",SUMPRODUCT((تصفية!$K$12:$K$111=$D67)*(تصفية!$G$12:$G$111=$F$7)*(تصفية!$H$12:$H$111))) -> 
B68: 59 | E68: =IF($D68="","",SUMPRODUCT((تصفية!$K$12:$K$111=$D68)*(تصفية!$G$12:$G$111=$D$7)*(تصفية!$H$12:$H$111))) ->  | F68: =IF($D68="","",SUMPRODUCT((تصفية!$K$12:$K$111=$D68)*(تصفية!$G$12:$G$111=$F$7)*(تصفية!$H$12:$H$111))) -> 
B69: 60 | E69: =IF($D69="","",SUMPRODUCT((تصفية!$K$12:$K$111=$D69)*(تصفية!$G$12:$G$111=$D$7)*(تصفية!$H$12:$H$111))) ->  | F69: =IF($D69="","",SUMPRODUCT((تصفية!$K$12:$K$111=$D69)*(تصفية!$G$12:$G$111=$F$7)*(تصفية!$H$12:$H$111))) -> 
B70: 61 | E70: =IF($D70="","",SUMPRODUCT((تصفية!$K$12:$K$111=$D70)*(تصفية!$G$12:$G$111=$D$7)*(تصفية!$H$12:$H$111))) ->  | F70: =IF($D70="","",SUMPRODUCT((تصفية!$K$12:$K$111=$D70)*(تصفية!$G$12:$G$111=$F$7)*(تصفية!$H$12:$H$111))) -> 
B71: 62 | E71: =IF($D71="","",SUMPRODUCT((تصفية!$K$12:$K$111=$D71)*(تصفية!$G$12:$G$111=$D$7)*(تصفية!$H$12:$H$111))) ->  | F71: =IF($D71="","",SUMPRODUCT((تصفية!$K$12:$K$111=$D71)*(تصفية!$G$12:$G$111=$F$7)*(تصفية!$H$12:$H$111))) -> 
B72: 63 | E72: =IF($D72="","",SUMPRODUCT((تصفية!$K$12:$K$111=$D72)*(تصفية!$G$12:$G$111=$D$7)*(تصفية!$H$12:$H$111))) ->  | F72: =IF($D72="","",SUMPRODUCT((تصفية!$K$12:$K$111=$D72)*(تصفية!$G$12:$G$111=$F$7)*(تصفية!$H$12:$H$111))) -> 
B73: 64 | E73: =IF($D73="","",SUMPRODUCT((تصفية!$K$12:$K$111=$D73)*(تصفية!$G$12:$G$111=$D$7)*(تصفية!$H$12:$H$111))) ->  | F73: =IF($D73="","",SUMPRODUCT((تصفية!$K$12:$K$111=$D73)*(تصفية!$G$12:$G$111=$F$7)*(تصفية!$H$12:$H$111))) -> 
B74: 65 | E74: =IF($D74="","",SUMPRODUCT((تصفية!$K$12:$K$111=$D74)*(تصفية!$G$12:$G$111=$D$7)*(تصفية!$H$12:$H$111))) ->  | F74: =IF($D74="","",SUMPRODUCT((تصفية!$K$12:$K$111=$D74)*(تصفية!$G$12:$G$111=$F$7)*(تصفية!$H$12:$H$111))) ->  | G74: =IF($D74="","",F74-E74) -> 
B75: 66 | E75: =IF($D75="","",SUMPRODUCT((تصفية!$K$12:$K$111=$D75)*(تصفية!$G$12:$G$111=$D$7)*(تصفية!$H$12:$H$111))) ->  | F75: =IF($D75="","",SUMPRODUCT((تصفية!$K$12:$K$111=$D75)*(تصفية!$G$12:$G$111=$F$7)*(تصفية!$H$12:$H$111))) -> 
B76: 67 | E76: =IF($D76="","",SUMPRODUCT((تصفية!$K$12:$K$111=$D76)*(تصفية!$G$12:$G$111=$D$7)*(تصفية!$H$12:$H$111))) ->  | F76: =IF($D76="","",SUMPRODUCT((تصفية!$K$12:$K$111=$D76)*(تصفية!$G$12:$G$111=$F$7)*(تصفية!$H$12:$H$111))) -> 
B77: 68 | E77: =IF($D77="","",SUMPRODUCT((تصفية!$K$12:$K$111=$D77)*(تصفية!$G$12:$G$111=$D$7)*(تصفية!$H$12:$H$111))) ->  | F77: =IF($D77="","",SUMPRODUCT((تصفية!$K$12:$K$111=$D77)*(تصفية!$G$12:$G$111=$F$7)*(تصفية!$H$12:$H$111))) -> 
B78: 69 | E78: =IF($D78="","",SUMPRODUCT((تصفية!$K$12:$K$111=$D78)*(تصفية!$G$12:$G$111=$D$7)*(تصفية!$H$12:$H$111))) ->  | F78: =IF($D78="","",SUMPRODUCT((تصفية!$K$12:$K$111=$D78)*(تصفية!$G$12:$G$111=$F$7)*(تصفية!$H$12:$H$111))) -> 
B79: 70 | E79: =IF($D79="","",SUMPRODUCT((تصفية!$K$12:$K$111=$D79)*(تصفية!$G$12:$G$111=$D$7)*(تصفية!$H$12:$H$111))) ->  | F79: =IF($D79="","",SUMPRODUCT((تصفية!$K$12:$K$111=$D79)*(تصفية!$G$12:$G$111=$F$7)*(تصفية!$H$12:$H$111))) -> 
B80: 71 | E80: =IF($D80="","",SUMPRODUCT((تصفية!$K$12:$K$111=$D80)*(تصفية!$G$12:$G$111=$D$7)*(تصفية!$H$12:$H$111))) ->  | F80: =IF($D80="","",SUMPRODUCT((تصفية!$K$12:$K$111=$D80)*(تصفية!$G$12:$G$111=$F$7)*(تصفية!$H$12:$H$111))) -> 
B81: 72 | E81: =IF($D81="","",SUMPRODUCT((تصفية!$K$12:$K$111=$D81)*(تصفية!$G$12:$G$111=$D$7)*(تصفية!$H$12:$H$111))) ->  | F81: =IF($D81="","",SUMPRODUCT((تصفية!$K$12:$K$111=$D81)*(تصفية!$G$12:$G$111=$F$7)*(تصفية!$H$12:$H$111))) -> 
B82: 73 | E82: =IF($D82="","",SUMPRODUCT((تصفية!$K$12:$K$111=$D82)*(تصفية!$G$12:$G$111=$D$7)*(تصفية!$H$12:$H$111))) ->  | F82: =IF($D82="","",SUMPRODUCT((تصفية!$K$12:$K$111=$D82)*(تصفية!$G$12:$G$111=$F$7)*(تصفية!$H$12:$H$111))) -> 
B83: 74 | E83: =IF($D83="","",SUMPRODUCT((تصفية!$K$12:$K$111=$D83)*(تصفية!$G$12:$G$111=$D$7)*(تصفية!$H$12:$H$111))) ->  | F83: =IF($D83="","",SUMPRODUCT((تصفية!$K$12:$K$111=$D83)*(تصفية!$G$12:$G$111=$F$7)*(تصفية!$H$12:$H$111))) -> 
B84: 75 | E84: =IF($D84="","",SUMPRODUCT((تصفية!$K$12:$K$111=$D84)*(تصفية!$G$12:$G$111=$D$7)*(تصفية!$H$12:$H$111))) ->  | F84: =IF($D84="","",SUMPRODUCT((تصفية!$K$12:$K$111=$D84)*(تصفية!$G$12:$G$111=$F$7)*(تصفية!$H$12:$H$111))) -> 
B85: 76 | F85: =IF($D85="","",SUMPRODUCT((تصفية!$K$12:$K$111=$D85)*(تصفية!$G$12:$G$111=$F$7)*(تصفية!$H$12:$H$111))) -> 
B86: 77 | F86: =IF($D86="","",SUMPRODUCT((تصفية!$K$12:$K$111=$D86)*(تصفية!$G$12:$G$111=$F$7)*(تصفية!$H$12:$H$111))) -> 
B87: 78 | F87: =IF($D87="","",SUMPRODUCT((تصفية!$K$12:$K$111=$D87)*(تصفية!$G$12:$G$111=$F$7)*(تصفية!$H$12:$H$111))) -> 
B88: 79 | F88: =IF($D88="","",SUMPRODUCT((تصفية!$K$12:$K$111=$D88)*(تصفية!$G$12:$G$111=$F$7)*(تصفية!$H$12:$H$111))) -> 
B89: 80 | F89: =IF($D89="","",SUMPRODUCT((تصفية!$K$12:$K$111=$D89)*(تصفية!$G$12:$G$111=$F$7)*(تصفية!$H$12:$H$111))) -> 
B90: 81 | F90: =IF($D90="","",SUMPRODUCT((تصفية!$K$12:$K$111=$D90)*(تصفية!$G$12:$G$111=$F$7)*(تصفية!$H$12:$H$111))) -> 
B91: 82 | F91: =IF($D91="","",SUMPRODUCT((تصفية!$K$12:$K$111=$D91)*(تصفية!$G$12:$G$111=$F$7)*(تصفية!$H$12:$H$111))) -> 
B92: 83 | F92: =IF($D92="","",SUMPRODUCT((تصفية!$K$12:$K$111=$D92)*(تصفية!$G$12:$G$111=$F$7)*(تصفية!$H$12:$H$111))) -> 
B93: 84 | F93: =IF($D93="","",SUMPRODUCT((تصفية!$K$12:$K$111=$D93)*(تصفية!$G$12:$G$111=$F$7)*(تصفية!$H$12:$H$111))) -> 
B94: 85 | F94: =IF($D94="","",SUMPRODUCT((تصفية!$K$12:$K$111=$D94)*(تصفية!$G$12:$G$111=$F$7)*(تصفية!$H$12:$H$111))) -> 
B95: 86 | F95: =IF($D95="","",SUMPRODUCT((تصفية!$K$12:$K$111=$D95)*(تصفية!$G$12:$G$111=$F$7)*(تصفية!$H$12:$H$111))) -> 
B96: 87 | F96: =IF($D96="","",SUMPRODUCT((تصفية!$K$12:$K$111=$D96)*(تصفية!$G$12:$G$111=$F$7)*(تصفية!$H$12:$H$111))) -> 
B97: 88 | F97: =IF($D97="","",SUMPRODUCT((تصفية!$K$12:$K$111=$D97)*(تصفية!$G$12:$G$111=$F$7)*(تصفية!$H$12:$H$111))) -> 
B98: 89 | F98: =IF($D98="","",SUMPRODUCT((تصفية!$K$12:$K$111=$D98)*(تصفية!$G$12:$G$111=$F$7)*(تصفية!$H$12:$H$111))) -> 
B99: 90 | F99: =IF($D99="","",SUMPRODUCT((تصفية!$K$12:$K$111=$D99)*(تصفية!$G$12:$G$111=$F$7)*(تصفية!$H$12:$H$111))) -> 
B100: 91 | F100: =IF($D100="","",SUMPRODUCT((تصفية!$K$12:$K$111=$D100)*(تصفية!$G$12:$G$111=$F$7)*(تصفية!$H$12:$H$111))) -> 
B101: 92 | F101: =IF($D101="","",SUMPRODUCT((تصفية!$K$12:$K$111=$D101)*(تصفية!$G$12:$G$111=$F$7)*(تصفية!$H$12:$H$111))) -> 
B102: 93 | F102: =IF($D102="","",SUMPRODUCT((تصفية!$K$12:$K$111=$D102)*(تصفية!$G$12:$G$111=$F$7)*(تصفية!$H$12:$H$111))) -> 
B103: 94 | F103: =IF($D103="","",SUMPRODUCT((تصفية!$K$12:$K$111=$D103)*(تصفية!$G$12:$G$111=$F$7)*(تصفية!$H$12:$H$111))) -> 
B104: 95 | G104: =IF($D104="","",F104-E104) -> 
B105: 96
B106: 97 | G106: =IF($D106="","",F106-E106) -> 
B107: 98
B108: 99
B109: 100
G111: تمت بحمد الله
